Cogmind - Beta 16.1 @@@ ROGUE MODE // 2026.02.17 @ 14:39:52 Player: Lintence Result: Self-destructed Performance ------------- Evolutions (2) 1000 Regions Visited (3) 600 Robots Destroyed (50) 250 Value Destroyed (1232) 1232 Prototype IDs (2) 40 Alien Tech Used (0) 0 Bonus (8) 8 TOTAL SCORE: 3130 Bonus ------- High Alert Combat Kills 8 Cogmind --------- Core Integrity 381/550 Matter 24/300 Energy 250/265 System Corruption 0% Temperature Cool (0) Movement Walking (90) Location -8/Materials Parts ------- > --- POWER (1) -------- Improved Ion Engine > --- PROPULSION (4) --- VSS Leg VSS Leg VSS Leg > --- UTILITY (2) ------ Improved Heat Sink Medium Storage Unit > --- WEAPON (4) ------- Heavy Assault Rifle Enhanced Autogun Enhanced Autogun Rocket Launcher > --- INVENTORY (10) --- Improved Ion Engine VSS Leg VSS Leg Active Sensor Suite Advanced Targeting Computer Recoil Stabilizer Peak State ------------ > --- POWER ------------ Improved Ion Engine > --- PROPULSION ------- VSS Leg VSS Leg VSS Leg VSS Leg > --- UTILITY ---------- Medium Storage Unit Recoil Stabilizer > --- WEAPON ----------- Enhanced Autogun Enhanced Autogun Enhanced Autogun Enhanced Autogun > --- INVENTORY -------- Improved Ion Engine VSS Leg VSS Leg Active Sensor Suite Targeting Computer Targeting Computer Heavy Assault Rifle Rocket Launcher [Rating: 38] Favorites ----------- Power Improved Ion Engine Engine Improved Ion Engine Propulsion Aluminum Leg Leg Aluminum Leg Utility Medium Storage Unit Device Structural Scanner Storage Medium Storage Unit Processor Targeting Computer Weapon Heavy Assault Rifle Energy Gun Medium Laser Energy Cannon Advanced Beam Cannon Ballistic Gun Heavy Assault Rifle Ballistic Cannon Light Cannon Launcher Rocket Launcher Build | -11 -10 -9 -8 ------- Run | Yrd Mat Mat Mat Slots Evolved 4 | . . 2 2 Power . | . . . . Propulsion 2 | . . 1 1 Utility . | . . . . Weapon 2 | . . 1 1 Parts Attached 41 | 7 9 10 15 Power 3 | 1 1 . 1 Engine 3 | 1 1 . 1 Core . | . . . . Reactor . | . . . . Propulsion 11 | 2 . 4 5 Treads . | . . . . Leg 11 | 2 . 4 5 Wheel . | . . . . Hover . | . . . . Flight . | . . . . Utility 9 | 1 3 3 2 Device 5 | . 3 . 2 Storage 3 | 1 . 2 . Processor 1 | . . 1 . Hackware . | . . . . Protection . | . . . . Artifact . | . . . . Weapon 18 | 3 5 3 7 Energy Gun 2 | 2 . . . Energy Cannon 1 | . . 1 . Ballistic Gun 12 | 1 3 2 6 Ballistic Cannon 2 | . 2 . . Launcher 1 | . . . 1 Special Weapon . | . . . . Impact Weapon . | . . . . Slashing Weapon . | . . . . Piercing Weapon . | . . . . Special Melee Weapon . | . . . . Unidentified Prototypes 2 | . . 1 1 Parts Lost 4 | . . . 4 Power 1 | . . . 1 Propulsion 1 | . . . 1 Utility . | . . . . Weapon 2 | . . . 2 Highest Loss Streak 3 | . . . 3 To Critical Strikes . | . . . . Average Backups 7 | 1 6 9 8 Power 1 | . 1 1 1 Propulsion 2 | . 1 2 2 Utility 1 | . . 2 2 Weapon 2 | . 2 2 1 Tool/Special . | . . . . Unused Backups 21 | . 5 6 10 Power 3 | . 2 . 1 Propulsion 7 | . 1 2 4 Utility 8 | . . 3 5 Weapon 3 | . 2 1 . Tool/Special . | . . . . Average Slot Usage (%) 96 | . 89 99 99 Engine 11 | . 14 11 9 Leg 32 | . 28 32 35 Device 6 | . 3 8 4 Storage 11 | . 14 11 9 Processor 2 | . . 2 4 Energy Gun 3 | . 12 . . Ballistic Gun 27 | . 9 33 35 Ballistic Cannon 1 | . 5 . . Peak Build Rating 38 | 6 12 17 38 Average Rating 16 | 4 6 14 29 On Entrance 8 | . 6 11 17 Avg Prop Armor Cover (%) . | . . . . Naked Turns . | . . . . Heaviest Build 31 | 14 19 27 31 Greatest Support 52 | 20 20 39 52 Greatest Overweight (x) 3 | 3 . 1 . Average Overweight (x) . | . . . . Largest Inventory Capacity 10 | 8 8 10 10 Average Capacity 9 | 7 8 9 10 Most Carried 10 | 2 8 10 10 Average Carried 8 | 1 6 9 9 Final Capacity 10 | 8 8 10 10 Final Carried 10 | 2 8 10 8 Class Distribution -------------------- 38% | Gunner 35% | Skirmisher 26% | Mutant Dominant Class ---------------- Mutant | -10/Materials Skirmisher | -9/Materials Gunner | -8/Materials Resources | -11 -10 -9 -8 ----------- Run | Yrd Mat Mat Mat Matter Collected 1346 | 185 179 336 646 Remotely . | . . . . Salvage Created 1901 | . 179 673 1049 Parts 113 | . 15 36 62 Haulers Intercepted 5 | . . 3 2 Recyclers Shooed 2 | . 1 1 . Parts Field Recycled . | . . . . Retrieved Matter . | . . . . Parts Self-Destructed . | . . . . Prevented . | . . . . Parts Restored . | . . . . Kills | -11 -10 -9 -8 ------- Run | Yrd Mat Mat Mat Combat Hostiles Destroyed 32 | . 3 7 22 Guns 25 | . 3 7 15 AOE 7 | . . . 7 Classes Destroyed 11 | . 3 5 3 Worker 3 | . . . 3 Builder 2 | . 2 . . Hauler 5 | . . 3 2 Recycler 4 | . . 2 2 Mechanic 2 | . 1 . 1 Operator 2 | . . 1 1 Swarmer 10 | . . . 10 Grunt 11 | . 3 1 7 Brawler 1 | . . 1 . Sentry 9 | . . 5 4 Heavy 1 | . . . 1 Best Kill Streak 12 | . 5 3 12 Combat Bots Only 7 | . 2 3 7 Max Kills in Single Turn 3 | . 1 2 3 Gunslinging 1 | . . . 1 Exploded 3 | . . . 3 Melee . | . . . . Uniques/NPCs Destroyed . | . . . . Combat | -11 -10 -9 -8 -------- Run | Yrd Mat Mat Mat Hostile Shots Fired 127 | . 16 20 91 Missed 39 | . 7 6 26 Hits 88 | . 9 14 65 Projectile 88 | . 9 14 65 Critical Strikes 3 | . . 3 . Damage Taken 1411 | . 96 212 1103 Core 217 | . 33 15 169 Absorbed by Shields . | . . . . Core Remaining (%) 94 | 100 86 96 . Volleys Fired 102 | . 26 21 55 Largest 4 | . 2 3 4 Hottest 100 | . 90 69 100 Shots Fired 301 | . 52 62 187 Gun 296 | . 52 62 182 Cannon . | . . . . Launcher 5 | . . . 5 Special . | . . . . Kinetic 260 | . 16 62 182 Thermal 26 | . 26 . . Explosive 5 | . . . 5 Electromagnetic 10 | . 10 . . Robot Hit Streak 13 | . 5 12 13 Robot Miss Streak 4 | . 3 3 4 Penetration Max . | . . . . Secondary Targets 3 | . . 1 2 Max Gunslinging Chain 1 | . . 1 1 Shots Hit Robots 185 | . 29 45 111 Core Hits 83 | . 12 20 51 Critical Kills 1 | . 1 . . Critical Parts Destroyed 2 | . . 2 . Critical Strikes 4 | . 2 2 . Burn 1 | . 1 . . Destroy 3 | . 1 2 . Melee Attacks . | . . . . Impact . | . . . . Slashing . | . . . . Piercing . | . . . . Sneak Attacks . | . . . . Combat Hostiles . | . . . . Follow-up Attacks . | . . . . Damage Inflicted 3617 | . 392 704 2521 Guns 3067 | . 389 704 1974 Cannons . | . . . . Explosions 510 | . . . 510 Melee . | . . . . Ramming 40 | . 3 . 37 Kinetic 2802 | . 124 704 1974 Thermal 188 | . 188 . . Explosive 510 | . . . 510 Electromagnetic 77 | . 77 . . Impact . | . . . . Slashing . | . . . . Piercing . | . . . . Highest Corruption . | . . . . Average Corruption . | . . . . Corruption Purged . | . . . . Corruption Blocked . | . . . . Overload Shots . | . . . . Overflow Damage 38 | . . . 38 Projectiles . | . . . . Explosions 38 | . . . 38 Melee . | . . . . Knockbacks . | . . . . Impact . | . . . . Kinetic . | . . . . Secondary . | . . . . Self-Inflicted Damage 38 | . . . 38 Shots 1 | . . . 1 Rammed . | . . . . Targets Rammed 6 | . 1 . 5 Kicked 6 | . 1 . 5 Crushed . | . . . . Highest Temperature 538 | . 204 54 538 Average Temperature 95 | . 51 15 159 Received Heat Transfer 405 | . 54 135 216 Effects 9 | . . . 9 Shutdowns 2 | . . . 2 Interference 3 | . . . 3 Damage (minor) 1 | . . . 1 Damage (major) 2 | . . . 2 Damage (core) 1 | . . . 1 Siege Activations . | . . . . Martial Activations . | . . . . Shielding Activations . | . . . . Robots Disrupted . | . . . . Combat Hostiles . | . . . . Robots Corrupted . | . . . . Combat Hostiles . | . . . . Parts Fried . | . . . . Impact Corruptions . | . . . . Robots Melted . | . . . . Combat Hostiles . | . . . . Parts Melted . | . . . . Heat Transferred 629 | . 629 . . Parts Sabotaged . | . . . . Parts Stolen . | . . . . Parts Stripped . | . . . . Power Chain Reactions . | . . . . Alert | -11 -10 -9 -8 ------- Run | Yrd Mat Mat Mat Maximum Alert Level 2 | . . . 2 Low Security (%) 93 | 100 100 100 78 Level 1 3 | . . . 12 Level 2 2 | . . . 8 Level 3 . | . . . . Level 4 . | . . . . Level 5 . | . . . . High Security . | . . . . Max Security . | . . . . Peak Influence 496 | . 51 74 496 Initial 4 | . . . 4 Average 52 | . 13 31 124 Influence Increases 1111 | . 111 298 702 Destroy 0b10 Robot/C 640 | . 60 140 440 Destroy 0b10 Robot/NC 90 | . 15 30 45 Destroy Leader 190 | . 20 66 104 Successful Hack 44 | . . 44 . Disable Machine 90 | . 15 . 75 Destroy Structure 42 | . 1 3 38 Lose Combat Pursuer 15 | . . 15 . Influence Decreases 643 | . 111 286 246 Entered New Map 8 | . . . 8 Time Decay 595 | . 111 286 198 Lost Part 40 | . . . 40 Squads Dispatched 6 | . 2 1 3 Investigation 1 | . . 1 . Extermination . | . . . . Reinforcement 5 | . 2 . 3 Assault . | . . . . Garrison . | . . . . Intercept . | . . . . Searches Triggered . | . . . . Construction Impeded 1 | . . . 1 Haulers Reinforced . | . . . . Active Scanning Responses . | . . . . Cargo Convoy Interrupts . | . . . . Stealth | -11 -10 -9 -8 --------- Run | Yrd Mat Mat Mat Distress Signals 12 | . . 6 6 Communications Jammed . | . . . . Distress Signals . | . . . . Times Spotted 56 | . 7 13 36 Peak Tracking Total 9 | . 3 3 9 Tactical Retreats 1 | . . 1 . Traps | -11 -10 -9 -8 ------- Run | Yrd Mat Mat Mat Traps Triggered . | . . . . Indirectly . | . . . . Trap Hack Attempts . | . . . . Triggered . | . . . . Disarmed . | . . . . Reprogrammed . | . . . . Reused . | . . . . Traps Extracted . | . . . . Installed . | . . . . Triggered . | . . . . Machines | -11 -10 -9 -8 ---------- Run | Yrd Mat Mat Mat Machines Disabled 6 | . 1 . 5 Max in Single Turn 2 | . 1 . 2 Machines Repaired . | . . . . Machines Dismantled . | . . . . Machines Sabotaged . | . . . . Overloaded Fab Kills . | . . . . Hacking | -11 -10 -9 -8 --------- Run | Yrd Mat Mat Mat Machines Accessed 7 | . . 6 1 Terminals 6 | . . 5 1 Fabricators . | . . . . Repair Stations . | . . . . Recycling Units . | . . . . Scanalyzers 1 | . . 1 . Garrison Access . | . . . . Total Hacks 20 | . . 18 2 Successful 10 | . . 9 1 Failed 10 | . . 9 1 Catastrophic 1 | . . 1 . Database Lockouts . | . . . . Manual 12 | . . 10 2 Terminals 16 | . . 14 2 Fabricators . | . . . . Repair Stations . | . . . . Recycling Units . | . . . . Scanalyzers 4 | . . 4 . Garrison Access . | . . . . Terminal Hacks 3 | . . 3 . Locate Traps 2 | . . 2 . Zone Layout 1 | . . 1 . Fabricator Hacks . | . . . . Repair Station Hacks . | . . . . Recycling Unit Hacks . | . . . . Scanalyzer 2 | . . 2 . Retrieve Study 2 | . . 2 . Garrison Access Hacks . | . . . . Unauthorized Hacks 5 | . . 4 1 Terminals 5 | . . 4 1 Botnet 5 | . . 4 1 Fabricators . | . . . . Repair Stations . | . . . . Recycling Units . | . . . . Scanalyzers . | . . . . Garrison Access . | . . . . Data Cores Recovered 1 | . . . 1 Used . | . . . . Hacking Detections 6 | . . 5 1 Full Trace Events 3 | . . 3 . Feedback Events . | . . . . Feedback Blocked . | . . . . Robot Schematics Acquired . | . . . . Robots Built . | . . . . Authchips . | . . . . Time . | . . . . Total Robot Build Rating . | . . . . Part Schematics Acquired . | . . . . Parts Built . | . . . . Authchips . | . . . . Time . | . . . . Total Part Build Rating . | . . . . Part Studies Acquired 2 | . . 2 . Parts Repaired . | . . . . Time . | . . . . Parts Recycled . | . . . . Recycled Matter . | . . . . Retrieved Matter . | . . . . Retrieved Components . | . . . . Parts Scanalyzed . | . . . . Part Schematics Acquired . | . . . . Parts Damaged . | . . . . Bothacking | -11 -10 -9 -8 ------------ Run | Yrd Mat Mat Mat Used RIF Installer . | . . . . Robots Hacked . | . . . . Non-combat . | . . . . Combat . | . . . . Robot Hacks Applied . | . . . . Relay Couplers Released . | . . . . Fabnet Peak Effective % . | . . . . Robots Rewired . | . . . . Allies Hacked . | . . . . Hacks Repelled . | . . . . Allies | -11 -10 -9 -8 -------- Run | Yrd Mat Mat Mat Total Allies . | . . . . Largest Group . | . . . . Highest-Rated Group . | . . . . Highest-Rated Ally . | . . . . Total Orders . | . . . . Ally Attacks . | . . . . Total Damage . | . . . . Kills . | . . . . Allies Corrupted . | . . . . Allies Melted . | . . . . Intel | -11 -10 -9 -8 ------- Run | Yrd Mat Mat Mat Active Infowar (turns) 644 | . 111 533 . Terrain 1 | . 1 . . Structural 643 | . 110 533 . Robot Analysis Total . | . . . . Derelict Logs Recovered . | . . . . Drone Launches . | . . . . Drone Recoveries . | . . . . Exploration | -11 -10 -9 -8 ------------- Run | Yrd Mat Mat Mat Turns Passed 1578 | 45 378 704 451 Spaces Moved 984 | 27 215 498 244 Core 9 | 9 . . . Treads . | . . . . Legs 975 | 18 215 498 244 Wheels . | . . . . Hover . | . . . . Flight . | . . . . Fastest Speed 50 | 50 120 120 90 Average Speed 118 | 126 120 121 109 Slowest Speed 200 | 200 120 190 120 Overloaded Moves . | . . . . Propulsion Burnouts . | . . . . Robots Hopped . | . . . . Potential Cave-ins . | . . . . Cave-ins Triggered . | . . . . Exploration Rate (%) 37 | 3 36 71 41 Regions Visited 3 Branch Regions . Pre-discovered Areas . | . . . . Known Exits Taken . | . . . . Unknown Exits Taken 3 | 1 1 1 . Scrap Searched . | . . . . Spaces Dug . | . . . . Terrain Destroyed 34 | . . . 34 Melee . | . . . . Projectile . | . . . . AOE 34 | . . . 34 Terrain Rammed . | . . . . Walls Destroyed . | . . . . Machines Disabled . | . . . . Actions | -11 -10 -9 -8 --------- Run | Yrd Mat Mat Mat Total 1252 | 35 287 560 370 Wait 29 | . 3 4 22 Move 981 | 26 214 497 244 Hop . | . . . . Pick Up 36 | 1 16 12 7 Fast Attach 21 | 7 7 2 5 Attach 7 | . . 2 5 Detach 4 | 1 1 1 1 Swap 20 | . 3 6 11 Drop 46 | . 16 15 15 Fire 102 | . 26 21 55 Melee . | . . . . Ram . | . . . . Kick 6 | . 1 . 5 Crush . | . . . . Escape Stasis . | . . . . Rewire . | . . . . Trap . | . . . . Miscellaneous . | . . . . Route ------- -11/Scrapyard -10/Materials (discovered 2 exits: *Mat / [*Min]) -9/Materials (discovered 3 exits: *Mat / [*Min] / [*Sto]) -8/Materials History --------- Turn | Location | Event 8 | -11/Scrapyard | Discovered new exit (range 16) 46 | -11/Scrapyard | Entered Materials 222 | -10/Materials | Discovered new exit (range 15) 325 | -10/Materials | Discovered new exit (range 15) 331 | -10/Materials | Build established: Mutant 424 | -10/Materials | Entered another Materials area 424 | -9/Materials | Evolved 2 slots: Propulsion x1, Weapon x1 467 | -9/Materials | Discovered new exit (range 11) 708 | -9/Materials | Build established: Skirmisher 753 | -9/Materials | Discovered new exit (range 16) 1125 | -9/Materials | Discovered new exit (range 3) 1128 | -9/Materials | Entered another Materials area 1128 | -8/Materials | Evolved 2 slots: Propulsion x1, Weapon x1 1256 | -8/Materials | Build established: Gunner 1360 | -8/Materials | Found Prototype Device 1579 | -8/Materials | Self-destructed Last Messages --------------- 01561_ U-05 Engineer lays Concrete. 01561_ S-10 Pest destroyed. 01562_ The unstable cave ceiling collapses. 01562_ ALERT: Hostiles spotted, dispatching reinforcements to Terminal M001. 01562_ U-05 Engineer lays Concrete. 01567_ VSS Leg destroyed. 01567_ U-05 Engineer lays Concrete. 01570_ The unstable cave ceiling collapses. 01570_ U-05 Engineer lays Concrete. 01571_ Enh. Autogun destroyed. 01571_ U-05 Engineer builds a Wall. 01571_ U-05 Engineer lays Concrete. 01572_ Acquired 8 matter. 01572_ U-05 Engineer builds a Wall. 01573_ Acquired 1 matter. 01573_ U-05 Engineer lays Concrete. 01575_ U-05 Engineer builds a Wall. 01576_ Acquired 3 matter. 01577_ U-05 Engineer lays Concrete. Map ----- +----------------------------------------------------+ | ????????????????# #####+#######+## =#%=[ #? | | ????????????????# ! ! [%=[% +*= #? | | ????????????????# #####=########## ! ########? | | ????????????????#####???#!#????????# #???????? | | ????????????????????????# #?????######"######????? | | ????????????????????????# #?????# = = #????? | | ????????????????????????# #?????# #????? | | ????????????????????????# #?????# #????? | | ????????????????????????# #?????# #????? | | ????????????????????????# #?????# !! #????? | | ????????????????????????# #?????# ! [!#????? | | ????????????????????????# #?????# = [*%#???? | | ?????????????????######## ###???##############???? | | ??????????????#? ! ##t# ######???????????????? | | ??????????????# """ ## # # ? ?????????????? | | ??????????????# """ # ### """ ????????????? | | ??????????????#! """ # """ #???????????? | | ??????????????# =% """ [ #???????????? | | ??????????????# = """# #???????????? | | ??????????????# R #u # """ ! #???????????? | | ??????????????# "" #u """ #???????????? | | ??????????????# =# u # """ #???????????? | | ????????????######### # * = #???????????? | | ????????????# ##+##########???????? | | ????????????# = =[%!![% ??????? | | ???????? = @ ![! *%=??????? | | ????????????# """ "" =%!!* %*??????? | | ????????????# """ """ "" ##########???????? | | ????????????? ??""" "" #????????????????? | | ????????????? "#???????????????? | | ???????????# T#???????????????? | | ???????????# """ """ ! "#???????????????? | | ???????????# ? """ """ ##???????????????? | | ????????????????""" """ #????????????????? | | ???????????????? #????????????????? | | ??????????????? ???????????????? | | ?????????????? """? """ """ s "??????????????? | | ??????????????? ???? """ """ s ?????????????? | | ?????????????????????""" """ ?????????????? | | ??????????????????????? ?? ????????????? | | ??????????????????????? ?? ?????????????? | | ???????????????????????#"T"??? ???????????????? | | ????????????????????????"""??? ??????????????????? | | ?????????????????????????????????????????????????? | | ?????????????????????????????????????????????????? | | ?????????????????????????????????????????????????? | | ?????????????????????????????????????????????????? | | ?????????????????????????????????????????????????? | | ?????????????????????????????????????????????????? | | ?????????????????????????????????????????????????? | +----------------------------------------------------+ Best States ------------- Heat Dissipation 45 Coolant Potential 50 Energy Generation 14 Energy Capacity 265 Matter Stores 300 Matter Capacity 300 Sight Range 16 Terrain Scan Density 10 Evasion (%) 55 Targeting Accuracy 5 Recoil Reduction 4 Item Schematics ----------------- None Robot Schematics ------------------ None Fabricated ------------ Nothing Repaired ---------- Nothing Studied --------- Hvy. Assault Rifle | -9/Materials | Hacked Imp. Ion Engine | -9/Materials | Hacked Alien Tech Used ----------------- None Achievements -------------- None Challenges ------------ None Game ------ Seed ExpertImprinterCoupler Manual? 0 Play Time 00:25:12 Cumulative 89.5 hours Start 2026.02.17 @ 14:17:25 End 2026.02.17 @ 14:39:52 Sessions 1 Manual Loads 0 Difficulty Rogue Special Mode None Game No. 180 Rogue 180 Adventurer 0 Explorer 0 Win Type - Total 1 Types 1/0/0/0/0/0/0/0/0/0 Lore% 26 Gallery% 35 Achievement% 26 Wizard Run 0 Options --------- Layout 1 ASCII 0 Keyboard 0 Movement Mouse Keybinds 0 Fullscreen 2 Font 20/X11 Map View 50x35 Zoom Use 0% Tactical HUD 1 Map Filters NONE Filters NONE Steam 1 RUN: 9f6bfdbd-8d71-44d3-99d3-eedd492acb4f